fUSD/lending_fUSD_20260324
["ID","MTS","AMOUNT","RATE_DAILY","PERIOD"]
[408866097,1774354243320,-556.0732286,0.00015999,2]
[408866099,1774354243330,-500.0,0.00015999,2]
[408866101,1774354243339,-500.0,0.00015999,2]
[408866102,1774354243349,-500.0,0.00015999,2]
[408866104,1774354243359,-360.22597208,0.00015999,2]
[408866105,1774354243368,-500.0,0.00015999,2]
[408866106,1774354243378,-500.0,0.00015999,2]
[408866107,1774354243387,-500.0,0.00015999,2]
[408866108,1774354243397,-625.95051134,0.00015999,2]
[408866109,1774354243406,-1406.0,0.00016,5]
[408866110,1774354243416,-1125.0,0.00016,5]
[408866111,1774354243425,-19113.57933327,0.00016,2]
[408866115,1774354246129,-2394.7283,0.00016,2]
[408866119,1774355340076,2586.29101083,9.5e-05,3]
[408866120,1774355340100,5000.01,9.5e-05,3]
[408866121,1774355340122,5000.01,9.5e-05,3]
[408866122,1774355340151,70042.4768546,9.5e-05,3]
[408866123,1774355399635,152.94,7.321e-05,2]
[408866124,1774355399843,152.94,8.134e-05,2]
[408866125,1774355400058,152.94,8.948e-05,2]
[408866132,1774355432006,-257.0,9.761e-05,2]
[408866134,1774355432016,-152.94,9.761e-05,2]
[408866135,1774355432026,-152.94,0.00010575,2]
[408866136,1774355432036,-192.58860367,0.000108,2]
[408866137,1774355432046,-1060.66863351,0.00011,2]
[408866138,1774355432055,-5533.0,0.000112,3]
[408866139,1774355432065,-152.94,0.00011388,2]
[408866140,1774355432074,-5533.0,0.000115,5]
[408866141,1774355432083,-151.101,0.00012,2]
[408866142,1774355432093,-152.94,0.00012201,2]
[408866143,1774355432103,-152.94,0.00013015,2]
[408866144,1774355432112,-152.94,0.00013828,2]
[408866145,1774355432122,-510.0,0.00014,2]
[408866146,1774355432133,-150.0,0.00014284,2]
[408866147,1774355432143,-409.01695122,0.00014284,2]
[408866148,1774355432155,-2528.28304878,0.00014284,2]
[408866149,1774355432165,-161.0,0.000144,2]
[408866150,1774355432175,-158.06,0.00014639,2]
[408866151,1774355432186,-152.94,0.00014642,2]
[408866152,1774355432196,-200.0,0.00014676,2]
[408866153,1774355432206,-948.11,0.00014727,2]
[408866154,1774355432219,-174.61919141,0.00015198,2]
[408866155,1774355432229,-990.448404,0.000152,2]
[408866156,1774355432239,-213.06,0.00015584,2]
[408866157,1774355432250,-2000.0,0.00015596,2]
[408866158,1774355432262,-181.08010149,0.00015746,2]
[408866159,1774355432272,-1000.0,0.00015776,2]
[408866160,1774355432282,-330.0605245,0.00015776,2]
[408866161,1774355432293,-631.75148754,0.00015776,2]
[408866163,1774355432304,-330.06052446,0.0001579,2]
[408866165,1774355432314,-631.75148748,0.0001579,2]
[408866167,1774355432324,-330.06052446,0.00015804,2]
[408866169,1774355432333,-631.75148748,0.00015804,2]
[408866171,1774355432343,-330.06052446,0.00015817,2]
[408866172,1774355432353,-631.75148748,0.00015817,2]
[408866173,1774355432363,-300.0,0.00015831,2]
[408866174,1774355432373,-330.06052446,0.00015831,2]
[408866175,1774355432383,-631.75148748,0.00015831,2]
[408866176,1774355432393,-330.06052446,0.00015845,2]
[408866177,1774355432403,-631.75148748,0.00015845,2]
[408866178,1774355432414,-330.06052446,0.00015859,2]
[408866179,1774355432424,-631.75148748,0.00015859,2]
[408866180,1774355432435,-151.5359789,0.00015866,2]
[408866181,1774355432445,-200.0,0.00015866,2]
[408866182,1774355432456,-694.71951158,0.00015866,2]
[408866183,1774355432466,-330.06052446,0.00015872,2]
[408866184,1774355432477,-631.75148748,0.00015872,2]
[408866185,1774355432487,-3948.71462484,0.00015873,2]
[408866186,1774355432501,-1051.28537516,0.00015873,2]
[408866187,1774355432510,-500.0,0.00015875,2]
[408866188,1774355432521,-500.0,0.00015875,2]
[408866189,1774355432530,-500.0,0.00015875,2]
[408866190,1774355432541,-500.0,0.00015875,2]
[408866191,1774355432551,-500.0,0.00015875,2]
[408866192,1774355432561,-500.0,0.00015875,2]
[408866193,1774355432571,-500.0,0.00015875,2]
[408866194,1774355432581,-500.0,0.00015875,2]
[408866195,1774355432591,-500.0,0.00015875,2]
[408866196,1774355432601,-500.0,0.00015875,2]
[408866197,1774355432611,-500.0,0.00015875,2]
[408866198,1774355432621,-500.0,0.00015875,2]
[408866199,1774355432631,-500.0,0.00015875,2]
[408866200,1774355432641,-500.0,0.00015875,2]
[408866201,1774355432651,-500.0,0.00015875,2]
[408866202,1774355432661,-500.0,0.00015875,2]
[408866203,1774355432671,-500.0,0.00015875,2]
[408866204,1774355432680,-500.0,0.00015875,2]
[408866205,1774355432690,-500.0,0.00015875,2]
[408866206,1774355432701,-500.0,0.00015875,2]
[408866207,1774355432710,-500.0,0.00015875,2]
[408866208,1774355432722,-500.0,0.00015875,2]
[408866209,1774355432732,-500.0,0.00015875,2]
[408866210,1774355432742,-500.0,0.00015875,2]
[408866211,1774355432752,-500.0,0.00015875,2]
[408866212,1774355432762,-500.0,0.00015875,2]
[408866213,1774355432772,-500.0,0.00015875,2]
[408866214,1774355432782,-500.0,0.00015875,2]
[408866215,1774355432792,-500.0,0.00015875,2]
[408866216,1774355432802,-500.0,0.00015875,2]
[408866217,1774355432812,-500.0,0.00015875,2]
[408866218,1774355432822,-500.0,0.00015875,2]
[408866219,1774355432832,-500.0,0.00015875,2]
[408866220,1774355432842,-500.0,0.00015875,2]
[408866221,1774355432851,-500.0,0.00015875,2]
[408866222,1774355432862,-500.0,0.00015875,2]
[408866223,1774355432873,-500.0,0.00015875,2]
[408866224,1774355432883,-500.0,0.00015875,2]
[408866225,1774355432894,-500.0,0.00015875,2]
[408866226,1774355432906,-500.0,0.00015875,2]
[408866227,1774355432916,-500.0,0.00015875,2]
[408866228,1774355432925,-500.0,0.00015875,2]
[408866229,1774355432935,-539.74795044,0.00015875,2]
[408866230,1774355432946,-43.38834966,0.00015875,2]
[408866231,1774355433353,-456.61165034,0.00015875,2]
[408866232,1774355433364,-500.0,0.00015875,2]
[408866233,1774355433374,-500.0,0.00015875,2]
[408866234,1774355433384,-500.0,0.00015875,2]
[408866235,1774355433394,-500.0,0.00015875,2]
[408866236,1774355433404,-500.0,0.00015875,2]
[408866237,1774355433414,-500.0,0.00015875,2]
[408866238,1774355433424,-500.0,0.00015875,2]
[408866239,1774355433434,-500.0,0.00015875,2]
[408866240,1774355433444,-500.0,0.00015875,2]
[408866241,1774355433454,-435.81457573,0.00015875,2]
[408866242,1774355433467,-64.18542427,0.00015875,2]
[408866243,1774355433476,-411.24131715,0.00015875,2]
[408866244,1774355433487,-500.0,0.00015875,2]
[408866245,1774355433497,-500.0,0.00015875,2]
[408866246,1774355433506,-500.0,0.00015875,2]
[408866247,1774355433516,-500.0,0.00015875,2]
[408866248,1774355433527,-500.0,0.00015875,2]
[408866249,1774355433537,-500.0,0.00015875,2]
[408866250,1774355433547,-500.0,0.00015875,2]
[408866251,1774355433557,-500.0,0.00015875,2]
[408866252,1774355433566,-500.0,0.00015875,2]
[408866253,1774355433576,-500.0,0.00015875,2]
[408866254,1774355433586,-500.0,0.00015875,2]
[408866255,1774355433596,-500.0,0.00015875,2]
[408866256,1774355433605,-500.0,0.00015875,2]
[408866257,1774355433615,-500.0,0.00015875,2]
[408866258,1774355433625,-500.0,0.00015875,2]
[408866259,1774355433635,-500.0,0.00015875,2]
[408866260,1774355433645,-500.0,0.00015875,2]
[408866261,1774355433655,-106.89194284,0.00015875,2]
[408866266,1774355438155,-206.58,0.00015875,2]
[408866267,1774355438165,-257.73702656,0.00015875,2]
[408866268,1774355438175,-500.0,0.00015875,2]
[408866269,1774355438185,-500.0,0.00015875,2]
[408866270,1774355438195,-500.0,0.00015875,2]
[408866271,1774355438205,-7663.34352269,0.00015876,2]
[408866272,1774355438219,-1070.36465114,0.00015876,2]
[408866273,1774355438232,-833.66172791,0.00015876,2]
[408866274,1774355438270,-500.0,0.00015876,2]
[408866288,1774355440570,-262.632924,0.00015876,2]
[408866289,1774355440892,-1053.16349774,0.00015876,2]
[408866299,1774355446250,-300.0,0.00015876,2]
[408866300,1774355446357,-10154.1786,0.00015876,2]
[408866319,1774356632359,-250.0,0.0001,2]
[408866320,1774356632373,-397.79199065,0.0001,2]
[408866321,1774356632383,-260.0,0.0001,2]
[408866322,1774356632392,-250.37440828,0.00013839,2]
[408866323,1774356632402,-486.33,0.0001384,3]
[408866324,1774356632412,-509.0,0.00014,2]
[408866325,1774356632422,-671.0,0.00014345,2]
[408866326,1774356632431,-4774.23,0.00014346,2]
[408866327,1774356632440,-11864.78,0.00014385,2]
[408866328,1774356632450,-4606.51,0.000145,2]
[408866329,1774356632459,-500.0,0.00014542,2]
[408866330,1774356632469,-394.8,0.00014586,2]
[408866331,1774356632479,-1115.2413,0.00014586,2]
[408866332,1774356632488,-369.0,0.00014597,2]
[408866333,1774356632498,-150.0,0.000146,2]
[408866334,1774356632507,-158.24,0.00014646,2]
[408866335,1774356632517,-404.40417475,0.00014654,2]
[408866336,1774356632526,-692.54,0.00014813,2]
[408866338,1774356632535,-200.0,0.00014842,2]
[408866340,1774356632545,-896.0,0.0001499,2]
[408866341,1774356632555,-150.0,0.00014999,2]
[408866342,1774356632567,-23276.31,0.00015,2]
[408866343,1774356632585,-2114.7,0.00015,2]
[408866344,1774356632595,-44075.24,0.00015,2]
[408866345,1774356632607,-299.99,0.00015,2]
[408866346,1774356632617,-1189.54,0.00015,2]
[408866347,1774356632626,-172.7,0.00015,2]
[408866348,1774356632636,-300.0,0.00015,5]
[408866349,1774356632647,-150.99,0.000151,2]
[408866350,1774356632657,-2995.8,0.000151,2]
[408866351,1774356632666,-5218.68,0.000151,2]
[408866352,1774356632676,-5413.02,0.000151,2]
[408866353,1774356632685,-1056.36,0.000151,2]
[408866354,1774356632695,-22885.88,0.000151,2]
[408866355,1774356632704,-600.0,0.000151,5]
[408866356,1774356632715,-351.42519861,0.00015171,2]
[408866357,1774356632725,-173.86399855,0.00015171,2]
[408866358,1774356632735,-900.0,0.000152,5]
[408866359,1774356632745,-1200.0,0.000153,5]
[408866360,1774356632756,-1600.0,0.000154,5]
[408866361,1774356632766,-300.0,0.000155,5]
[408866362,1774356632776,-4000.0,0.00015507,2]
[408866363,1774356632786,-300.0,0.000156,5]
[408866364,1774356632796,-1443.25185995,0.0001561,2]
[408866365,1774356632806,-2872.7628,0.00015612,2]
[408866366,1774356632819,-4018.2483,0.00015612,2]
[408866367,1774356632829,-1000.0,0.00015612,2]
[408866368,1774356632840,-598.14720353,0.00015612,2]
[408866369,1774356632849,-1456.24620901,0.00015612,2]
[408866370,1774356632859,-1443.25185994,0.00015642,2]
[408866371,1774356632870,-598.14720345,0.00015644,2]
[408866372,1774356632879,-1456.246209,0.00015653,2]
[408866373,1774356632890,-1443.25185994,0.00015674,2]
[408866374,1774356632900,-5000.0,0.00015675,2]
[408866375,1774356632910,-598.14720345,0.00015676,2]
[408866376,1774356632921,-1456.246209,0.00015694,2]
[408866377,1774356632931,-274.481,0.00015699,2]
[408866378,1774356632941,-300.0,0.000157,5]
[408866379,1774356632951,-500.0,0.00015702,2]
[408866380,1774356632961,-500.0,0.00015702,2]
[408866381,1774356632971,-500.0,0.00015702,2]
[408866382,1774356632981,-500.0,0.00015702,2]
[408866383,1774356632990,-622.87220982,0.00015702,2]
[408866384,1774356633000,-200.0,0.00015702,2]
[408866385,1774356633010,-1443.25185994,0.00015707,2]
[408866386,1774356633020,-598.14720345,0.00015708,2]
[408866387,1774356633030,-193.89943557,0.00015711,2]
[408866388,1774356633039,-271.19077047,0.00015711,2]
[408866389,1774356633048,-500.0,0.00015711,2]
[408866390,1774356633058,-529.42180418,0.00015711,2]
[408866391,1774356633068,-500.0,0.00015711,2]
[408866392,1774356633078,-500.0,0.00015711,2]
[408866393,1774356633089,-500.0,0.00015711,2]
[408866394,1774356633098,-500.0,0.00015711,2]
[408866395,1774356633107,-303922.84597706,0.00015712,2]
[408866396,1774356633120,-24579.84532294,0.00015712,2]
[408866397,1774356633130,-151.0,0.00015712,2]
[408866398,1774356633140,-151.0,0.00015712,2]
[408866399,1774356633149,-151.0,0.00015712,2]
[408866400,1774356633159,-1456.246209,0.00015735,2]
[408866401,1774356633169,-1443.25185994,0.00015739,2]
[408866402,1774356633179,-598.14720345,0.0001574,2]
[408866403,1774356633188,-1443.25185994,0.00015771,2]
[408866404,1774356633198,-598.14720345,0.00015772,2]
[408866405,1774356633211,-500.0,0.00015773,2]
[408866406,1774356633221,-500.0,0.00015773,2]
[408866407,1774356633230,-500.0,0.00015773,2]
[408866408,1774356633240,-500.0,0.00015774,2]
[408866409,1774356633249,-623.17225997,0.00015774,2]
[408866410,1774356633258,-500.0,0.00015774,2]
[408866411,1774356633268,-500.0,0.00015774,2]
[408866412,1774356633277,-10002.32583835,0.00015775,2]
[408866413,1774356633289,-62803.22617424,0.00015775,2]
[408866414,1774356633304,-103690.87521836,0.00015775,2]
[408866415,1774356638279,-500.0,0.00015711,2]
[408866416,1774356638288,-500.0,0.00015773,2]
[408866417,1774356638297,-500.0,0.00015774,2]
[408866418,1774356638307,-500.0,0.00015774,2]
[408866419,1774356638316,-6709.01352736,0.00015775,2]
[408866420,1774356638328,-872.60741964,0.00015775,2]
[408866421,1774356638340,-1967.2854498,0.00015775,2]
[408866422,1774356638352,-1226.30029291,0.00015775,2]
[408866423,1774356638390,-281422.87737934,0.00015775,2]
[408866424,1774356638400,-271.02594,0.00015775,2]
[408866425,1774356638410,-151.0,0.00015775,2]
[408866426,1774356638420,-151.0,0.00015775,2]
[408866427,1774356638430,-151.0,0.00015775,2]
[408866428,1774356638440,-1456.246209,0.00015777,2]
[408866429,1774356638450,-300.0,0.000158,5]
[408866430,1774356638459,-1443.25185994,0.00015803,2]
[408866431,1774356638469,-598.14720345,0.00015804,2]
[408866432,1774356638478,-1456.246209,0.00015818,2]
[408866433,1774356638488,-1443.25185994,0.00015836,2]
[408866434,1774356638498,-598.14720345,0.00015836,2]
[408866436,1774356638507,-1456.246209,0.00015859,2]
[408866438,1774356638517,-1443.25185994,0.00015868,2]
[408866440,1774356638526,-598.14720345,0.00015868,2]
[408866442,1774356638536,-151.0,0.00015873,2]
[408866444,1774356638545,-151.0,0.00015873,2]
[408866446,1774356638554,-648.0,0.00015875,5]
[408866448,1774356638563,-500.0,0.00015875,2]
[408866450,1774356638576,-405.4389704,0.00015875,2]
[408866452,1774356638586,-500.0,0.00015875,2]
[408866454,1774356638595,-500.0,0.00015875,2]
[408866456,1774356638605,-604.01853711,0.00015875,2]
[408866458,1774356638615,-3401.2271327,0.00015876,2]
[408866460,1774356638626,-2284.4906504,0.00015876,2]
[408866462,1774356638635,-48012.2160988,0.00015876,2]
[408866464,1774356638645,-2000.0,0.0001589,2]
[408866466,1774356638656,-4000.0,0.00015895,2]
[408866468,1774356638665,-151.0,0.000159,2]
[408866470,1774356638675,-1443.25185994,0.000159,2]
[408866472,1774356638684,-665.0,0.000159,5]
[408866474,1774356638693,-598.14720345,0.000159,2]
[408866476,1774356638703,-289.63369233,0.000159,2]
[408866478,1774356638712,-151.0,0.000159,2]
[408866480,1774356638722,-29981.18988431,0.000159,2]
[408866482,1774356638731,-1456.246209,0.000159,2]
[408866484,1774356638740,-1096.199,0.000159,2]
[408866487,1774356638750,-581.0,0.00015973,5]
[408866489,1774356638760,-500.0,0.00015973,2]
[408866491,1774356638769,-576.85304714,0.00015973,2]
[408866493,1774356638778,-547.70188919,0.00015973,2]
[408866495,1774356638787,-500.0,0.00015973,2]
[408866497,1774356638797,-500.0,0.00015973,2]
[408866499,1774356638807,-500.0,0.00015973,2]
[408866501,1774356638816,-500.0,0.00015973,2]
[408866503,1774356638826,-500.0,0.00015973,2]
[408866505,1774356638836,-500.0,0.00015973,2]
[408866506,1774356638845,-348.67349795,0.00015973,2]
[408866508,1774356638855,-214.75693323,0.00015973,2]
[408866510,1774356638865,-500.0,0.00015973,2]
[408866511,1774356638875,-171.1954952,0.00015973,2]
[408866512,1774356638885,-257.112214,0.00015973,2]
[408866513,1774356638895,-151.0,0.00015973,2]
[408866514,1774356638905,-166.08424682,0.0001599,2]
[408866515,1774356638914,-231.12108758,0.00015996,2]
[408866516,1774356638924,-204.07600257,0.00015999,5]
[408866517,1774356638933,-206.00000009,0.00015999,2]
[408866518,1774356638943,-500.0,0.00015999,2]
[408866519,1774356638953,-500.0,0.00015999,2]
[408866520,1774356638962,-500.0,0.00015999,2]
[408866521,1774356638971,-500.0,0.00015999,2]
[408866522,1774356638981,-500.0,0.00015999,2]
[408866523,1774356638990,-500.0,0.00015999,2]
[408866524,1774356638999,-500.0,0.00015999,2]
[408866525,1774356639009,-500.0,0.00015999,2]
[408866526,1774356639018,-573.16535794,0.00015999,2]
[408866527,1774356639028,-714.0,0.00016,5]
[408866528,1774356639038,-2604679.07087522,0.00016,2]
[408866529,1774356639050,-2923.80028505,0.00016,2]
[408866530,1774356639061,-85400.00000012,0.00016,2]
[408866534,1774356640604,-1096.199,0.00016,2]
[408866535,1774356640823,-3763.65259577,0.00016,2]
[408866536,1774356640880,-1137.5,0.00016,2]
[408866560,1774356643362,-2305.75376585,0.00016,2]
[408866561,1774356643472,-75428.38699898,0.00016,2]
[408866565,1774356975737,-570.64,0.00011507,2]
[408866566,1774356975765,-509.0,0.00014,2]
[408866567,1774356975794,-300.0,0.00014156,2]
[408866568,1774356983880,-4869.18528028,0.00014157,2]
[408866569,1774356983955,-5000.01,0.00014157,2]
[408866570,1774356986729,-5000.01,0.00014157,2]
[408866571,1774356990611,-5000.01,0.00014157,2]
[408866572,1774356993710,-5000.01,0.00014157,2]
[408866573,1774357320360,2519.0,0.00017,60]
[408866574,1774357451766,-1468.65,0.00013545,2]
[408866575,1774357451792,-250.0,0.00013593,2]
[408866576,1774357451820,-166.66,0.00013641,2]
[408866577,1774357451848,-250.0,0.00013764,2]
[408866578,1774357451873,-300.0,0.00013803,2]
[408866579,1774357451981,-129.39,0.00013803,2]
[408866580,1774357452010,-170.61,0.00013803,2]
[408866581,1774357452036,-300.0,0.00013803,2]
[408866582,1774357452063,-302.87275784,0.00013803,2]
[408866583,1774357452090,-600.0,0.00013803,2]
[408866584,1774357452122,-600.0,0.00013803,2]
[408866585,1774357452149,-453.04448432,0.00013803,2]
[408866586,1774357452237,-146.95551568,0.00013803,2]
[408866587,1774357452264,-183.9806181,0.000139,2]
[408866588,1774357452292,-166.66,0.00013928,2]
[408866589,1774357452552,-509.99997,0.00014,2]
[408866590,1774357452583,-1200.0,0.00014072,2]
[408866591,1774357452611,-253.81779244,0.00014072,2]
[408866592,1774357452854,-77.18220756,0.00014072,2]
[408866593,1774357452864,-183.9806181,0.00014072,2]
[408866594,1774357454659,-27.0193819,0.00014072,2]
[408866595,1774357454687,-153.5761414,0.00014073,2]
[408866596,1774357454715,-2040.76809,0.00014073,2]
[408866597,1774357454798,-557.2827734,0.00014073,2]
[408866598,1774357454856,-584.77678359,0.00014073,2]
[408866599,1774357454885,-728.1231045,0.00014073,2]
[408866600,1774357454911,-150.0,0.00014127,2]
[408866601,1774357455207,-2074.21022382,0.00014155,2]
[408866602,1774357455249,-5000.01,0.00014155,2]
[408866606,1774357628093,5000.01,7.945e-05,2]
[408866607,1774357628114,4278.074099,7.945e-05,2]
[408866610,1774357801805,-150.0,0.0001261,2]
[408866612,1774357831379,-250.0,0.00013,2]
[408866613,1774357831388,-58.29206342,0.00013282,2]
[408866614,1774357831441,-441.70793658,0.00013282,2]
[408866615,1774357831450,-200.0,0.00013282,2]
[408866616,1774357831461,-22.84197697,0.00013668,2]
[408866617,1774357831471,-1606.72727158,0.00013668,2]
[408866618,1774357831483,-926.82075145,0.00013668,2]
[408866619,1774357831492,-222.85862646,0.00013727,2]
[408866620,1774357831501,-848.82804694,0.00013827,2]
[408866622,1774357831512,-2391.17195306,0.00013827,2]
[408866623,1774357831521,-300.0,0.00013871,2]
[408866624,1774357831530,-517.23370451,0.00013871,2]
[408866625,1774357831538,-432.18615122,0.00014,2]
[408866626,1774357831557,-76.81384878,0.00014,2]
[408866628,1774357831567,-300.0,0.00014058,2]
[408866629,1774357831577,-1836.691281,0.00014059,2]
[408866630,1774357831586,-637.10771649,0.00014059,2]
[408866631,1774357831595,-500.0,0.00014148,2]
[408866632,1774357831604,-201.96082894,0.00014148,2]
[408866633,1774357831613,-500.0,0.00014148,2]
[408866634,1774357831622,-500.0,0.00014148,2]
[408866635,1774357831631,-150.0,0.00014154,2]
[408866636,1774357831640,-192.99553635,0.00014155,2]
[408866637,1774357831649,-33018.40569898,0.00014155,2]
[408866638,1774357831658,-300.0,0.00014155,2]
[408866639,1774357831668,-300.0,0.00014156,2]
[408866640,1774357831678,-300.0,0.00014156,2]
[408866641,1774357831687,-500.0,0.00014156,2]
[408866642,1774357831696,-500.0,0.00014156,2]
[408866643,1774357831705,-500.0,0.00014156,2]
[408866644,1774357831715,-500.0,0.00014156,2]
[408866645,1774357831724,-500.0,0.00014156,2]
[408866646,1774357831733,-500.0,0.00014156,2]
[408866647,1774357831744,-500.0,0.00014156,2]
[408866648,1774357831753,-500.0,0.00014156,2]
[408866649,1774357831762,-500.0,0.00014156,2]
[408866650,1774357831771,-500.0,0.00014156,2]
[408866651,1774357831780,-500.0,0.00014156,2]
[408866652,1774357831789,-500.0,0.00014156,2]
[408866653,1774357831799,-500.0,0.00014156,2]
[408866654,1774357831808,-500.0,0.00014156,2]
[408866655,1774357831817,-500.0,0.00014156,2]
[408866656,1774357831826,-500.0,0.00014156,2]
[408866657,1774357831836,-500.0,0.00014156,2]
[408866658,1774357831845,-500.0,0.00014156,2]
[408866659,1774357831854,-500.0,0.00014156,2]
[408866660,1774357831866,-500.0,0.00014156,2]
[408866661,1774357831876,-500.0,0.00014156,2]
[408866662,1774357831885,-500.0,0.00014156,2]
[408866663,1774357831895,-500.0,0.00014156,2]
[408866664,1774357831907,-500.0,0.00014156,2]
[408866665,1774357831917,-500.0,0.00014156,2]
[408866666,1774357831926,-500.0,0.00014156,2]
[408866667,1774357831937,-500.0,0.00014156,2]
[408866668,1774357831946,-500.0,0.00014156,2]
[408866669,1774357831955,-500.0,0.00014156,2]
[408866670,1774357831965,-500.0,0.00014156,2]
[408866671,1774357831974,-500.0,0.00014156,2]
[408866672,1774357831983,-500.0,0.00014156,2]
[408866673,1774357831993,-500.0,0.00014156,2]
[408866674,1774357832002,-500.0,0.00014156,2]
[408866675,1774357832012,-500.0,0.00014156,2]
[408866676,1774357832021,-500.0,0.00014156,2]
[408866677,1774357832031,-500.0,0.00014156,2]
[408866678,1774357832040,-500.0,0.00014156,2]
[408866679,1774357832049,-500.0,0.00014156,2]
[408866680,1774357832058,-621.22240588,0.00014156,2]
[408866681,1774357832067,-500.0,0.00014156,2]
[408866682,1774357832077,-500.0,0.00014156,2]
[408866683,1774357832086,-500.0,0.00014156,2]
[408866684,1774357832095,-500.0,0.00014156,2]
[408866685,1774357832104,-500.0,0.00014156,2]
[408866686,1774357832113,-500.0,0.00014156,2]
[408866687,1774357832122,-500.0,0.00014156,2]
[408866688,1774357832131,-500.0,0.00014156,2]
[408866689,1774357832140,-500.0,0.00014156,2]
[408866690,1774357832149,-500.0,0.00014156,2]
[408866691,1774357832159,-500.0,0.00014156,2]
[408866692,1774357832168,-500.0,0.00014156,2]
[408866693,1774357832178,-500.0,0.00014156,2]
[408866694,1774357832187,-500.0,0.00014156,2]
[408866695,1774357832197,-500.0,0.00014156,2]
[408866696,1774357832207,-500.0,0.00014156,2]
[408866697,1774357832217,-500.0,0.00014156,2]
[408866698,1774357832226,-500.0,0.00014156,2]
[408866699,1774357832235,-500.0,0.00014156,2]
[408866700,1774357832245,-500.0,0.00014156,2]
[408866701,1774357832254,-500.0,0.00014156,2]
[408866702,1774357832264,-500.0,0.00014156,2]
[408866703,1774357832274,-500.0,0.00014156,2]
[408866704,1774357832282,-500.0,0.00014156,2]
[408866705,1774357832293,-500.0,0.00014156,2]
[408866706,1774357832302,-500.0,0.00014156,2]
[408866707,1774357832311,-500.0,0.00014156,2]
[408866708,1774357832321,-500.0,0.00014156,2]
[408866709,1774357832331,-500.0,0.00014156,2]
[408866710,1774357832340,-500.0,0.00014156,2]
[408866711,1774357832350,-500.0,0.00014156,2]
[408866712,1774357832361,-500.0,0.00014156,2]
[408866713,1774357832371,-500.0,0.00014156,2]
[408866714,1774357832380,-500.0,0.00014156,2]
[408866715,1774357832389,-500.0,0.00014156,2]
[408866716,1774357832398,-500.0,0.00014156,2]
[408866717,1774357832407,-500.0,0.00014156,2]
[408866718,1774357832416,-500.0,0.00014156,2]
[408866719,1774357832425,-595.0,0.00014156,2]
[408866720,1774357832434,-500.0,0.00014156,2]
[408866721,1774357832443,-500.0,0.00014156,2]
[408866722,1774357832452,-500.0,0.00014156,2]
[408866723,1774357832461,-500.0,0.00014156,2]
[408866724,1774357832470,-1946.1071872,0.00014157,2]
[408866725,1774357832483,-6571.89240313,0.00014157,2]
[408866726,1774357832495,-159172.98885266,0.00014157,2]
[408866727,1774357832506,-29246.1124279,0.00014157,2]
[408866728,1774357832517,-12124.90390716,0.00014157,2]
[408866729,1774357832530,-748.00966555,0.00014157,2]
[408866730,1774357832543,-156943.42027612,0.00014157,2]
[408866731,1774357832553,-14243.83,0.00014171,2]
[408866732,1774357832562,-500.65855291,0.00014173,2]
[408866733,1774357832571,-505.73499567,0.00014173,2]
[408866734,1774357832581,-550.20119901,0.00014173,2]
[408866735,1774357832590,-500.0,0.00014173,2]
[408866736,1774357832599,-500.0,0.00014173,2]
[408866737,1774357832608,-500.0,0.00014173,2]
[408866738,1774357832617,-500.0,0.00014173,2]